Cogmind - Beta 17 @@@ ROGUE MODE // 2026.07.14 @ 21:45:35 Player: Vectis Result: Destroyed by E9-WB2(j) with Overtuned Pulse Rifle Performance ------------- Evolutions (0) 0 Regions Visited (3) 600 Robots Destroyed (18) 90 Value Destroyed (458) 458 Prototype IDs (1) 20 Alien Tech Used (0) 0 Bonus (0) 0 TOTAL SCORE: 1168 Bonus ------- None Cogmind --------- Core Integrity 0/250 Matter 284/300 Energy 99/100 System Corruption 0% Temperature Warning (360) Movement Core (50) Location -8/Recycling Parts ------- > --- POWER (1) -------- (None) > --- PROPULSION (2) --- (None) > --- UTILITY (2) ------ Scrap Engine > --- WEAPON (2) ------- (None) > --- INVENTORY (5) ---- Scrap Shield Peak State ------------ > --- POWER ------------ Ion Engine > --- PROPULSION ------- Wheel Wheel > --- UTILITY ---------- Scrap Engine > --- WEAPON ----------- Heavy Particle Cannon Assault Rifle > --- INVENTORY -------- Scrap Shield [Rating: 25] Favorites ----------- Power Ion Engine Engine Ion Engine Propulsion Wheel Treads Light Treads Leg Aluminum Leg Wheel Wheel Utility Humpback Device Improved Terrain Scanner Storage Humpback Protection Scrap Shield Weapon Battle Rifle Energy Gun Medium Laser Energy Cannon Heavy Particle Cannon Ballistic Gun Battle Rifle Special Weapon Mining Laser Build | -11 -10 -10 -8 ------- Run | Yrd Mat Sub Rec Slots Evolved . | . . . . Power . | . . . . Propulsion . | . . . . Utility . | . . . . Weapon . | . . . . Parts Attached 18 | 4 1 8 5 Power . | . . . . Engine . | . . . . Core . | . . . . Reactor . | . . . . Propulsion 6 | 2 . 3 1 Treads 2 | 2 . . . Leg . | . . . . Wheel 4 | . . 3 1 Hover . | . . . . Flight . | . . . . Utility 4 | 1 . 2 1 Device 2 | 1 . . 1 Storage 1 | . . 1 . Processor . | . . . . Hackware . | . . . . Protection 1 | . . 1 . Artifact . | . . . . Weapon 8 | 1 1 3 3 Energy Gun 1 | 1 . . . Energy Cannon 3 | . . 1 2 Ballistic Gun 3 | . 1 1 1 Ballistic Cannon . | . . . . Launcher . | . . . . Special Weapon 1 | . . 1 . Impact Weapon . | . . . . Slashing Weapon . | . . . . Piercing Weapon . | . . . . Special Melee Weapon . | . . . . Unidentified Prototypes 1 | . . . 1 Parts Lost 9 | . . 1 8 Power 1 | . . . 1 Propulsion 4 | . . 1 3 Utility . | . . . . Weapon 4 | . . . 4 Highest Loss Streak 8 | . . 1 8 To Critical Strikes . | . . . . Average Backups 20 | 6 6 11 28 Power 1 | 1 1 1 2 Propulsion 4 | 3 2 2 5 Utility 7 | . . 4 11 Weapon 6 | 1 3 3 8 Tool/Special . | . . . . Unused Backups 41 | 8 2 3 28 Power 6 | 1 . . 5 Propulsion 12 | 5 1 . 6 Utility 12 | 1 . . 11 Weapon 11 | 1 1 3 6 Tool/Special . | . . . . Average Slot Usage (%) 88 | . 99 92 84 Engine 14 | . 14 14 14 Treads 6 | . 28 14 . Wheel 20 | . . 13 27 Device 3 | . 14 7 . Storage 13 | . 14 13 13 Energy Cannon 12 | . . 10 13 Ballistic Gun 15 | . 25 16 13 Peak Build Rating 25 | 9 9 14 25 Average Rating 13 | 7 8 10 16 On Entrance 9 | 6 9 9 14 Avg Prop Armor Cover (%) . | . . . . Naked Turns . | . . . . Heaviest Build 215 | 15 15 215 215 Greatest Support 40 | 40 40 40 20 Greatest Overweight (x) 10 | . . 10 10 Average Overweight (x) 6 | . . 4 9 Largest Inventory Capacity 35 | 8 8 35 35 Average Capacity 27 | 8 8 21 34 Most Carried 35 | 6 8 27 35 Average Carried 21 | 5 7 11 30 Final Capacity 35 | 8 8 35 5 Final Carried 27 | 6 8 27 2 Class Distribution -------------------- 73% | Hauler-Mutant 26% | Mutant Dominant Class ---------------- Mutant | -10/Materials Hauler-Mutant | -10/Subcaves Hauler-Mutant | -8/Recycling Resources | -11 -10 -10 -8 ----------- Run | Yrd Mat Sub Rec Matter Collected 848 | 249 53 464 82 Remotely . | . . . . Salvage Created 910 | 72 . 320 518 Parts 43 | 7 . 21 15 Haulers Intercepted . | . . . . Recyclers Shooed 1 | . . . 1 Parts Field Recycled . | . . . . Retrieved Matter . | . . . . Parts Self-Destructed 27 | . . 27 . Prevented . | . . . . Parts Restored . | . . . . Kills | -11 -10 -10 -8 ------- Run | Yrd Mat Sub Rec Combat Hostiles Destroyed 10 | . . 8 2 Guns 6 | . . 5 1 Cannons 4 | . . 3 1 Classes Destroyed 6 | 2 . 4 . Tunneler 1 | 1 . . . Recycler 6 | 1 . . 5 Turret 1 | . . 1 . Swarmer 1 | . . 1 . Sentry 3 | . . 1 2 Subdweller 6 | . . 6 . Best Kill Streak 5 | 2 . 2 5 Combat Bots Only 2 | . . 2 2 Max Kills in Single Turn 1 | 1 . 1 1 Gunslinging . | . . . . Exploded . | . . . . Melee . | . . . . Uniques/NPCs Destroyed . | . . . . Combat | -11 -10 -10 -8 -------- Run | Yrd Mat Sub Rec Hostile Shots Fired 109 | . . 66 43 Missed 27 | . . 21 6 Hits 82 | . . 45 37 Projectile 82 | . . 45 37 Critical Strikes 7 | . . 3 4 Damage Taken 1537 | . . 803 734 Core 271 | . . 64 207 Absorbed by Shields . | . . . . Core Remaining (%) 100 | 100 . . . Volleys Fired 105 | 3 1 58 43 Largest 2 | 2 2 2 2 Hottest 105 | 70 40 105 100 Shots Fired 177 | 6 2 105 64 Gun 117 | 6 2 78 31 Cannon 50 | . . 17 33 Launcher . | . . . . Special 10 | . . 10 . Kinetic 114 | 3 2 78 31 Thermal 63 | 3 . 27 33 Explosive . | . . . . Electromagnetic . | . . . . Robot Hit Streak 14 | 2 4 11 14 Robot Miss Streak 4 | 1 . 4 4 Penetration Max . | . . . . Secondary Targets 1 | . . 1 . Max Gunslinging Chain 1 | . . 1 . Shots Hit Robots 104 | 3 2 65 34 Core Hits 30 | 3 . 15 12 Critical Kills . | . . . . Critical Parts Destroyed . | . . . . Critical Strikes 1 | . . 1 . Destroy 1 | . . 1 . Melee Attacks . | . . . . Impact . | . . . . Slashing . | . . . . Piercing . | . . . . Sneak Attacks . | . . . . Combat Hostiles . | . . . . Follow-up Attacks . | . . . . Damage Inflicted 1750 | 37 30 983 700 Guns 1077 | 37 30 739 271 Cannons 669 | . . 244 425 Explosions . | . . . . Melee . | . . . . Ramming 4 | . . . 4 Kinetic 1040 | . 30 739 271 Thermal 706 | 37 . 244 425 Explosive . | . . . . Electromagnetic . | . . . . Impact . | . . . . Slashing . | . . . . Piercing . | . . . . Highest Corruption . | . . . . Average Corruption . | . . . . Corruption Purged . | . . . . Corruption Blocked . | . . . . Overload Shots . | . . . . Overflow Damage . | . . . . Projectiles . | . . . . Explosions . | . . . . Melee . | . . . . Knockbacks . | . . . . Impact . | . . . . Kinetic . | . . . . Secondary . | . . . . Self-Inflicted Damage 2 | . . . 2 Shots . | . . . . Rammed 1 | . . . 1 Targets Rammed 1 | . . . 1 Kicked . | . . . . Crushed . | . . . . Highest Temperature 356 | 27 . 60 356 Average Temperature 106 | 14 . 24 130 Received Heat Transfer 588 | . . 117 471 Effects 2 | . . . 2 Interference 1 | . . . 1 Damage (minor) 1 | . . . 1 Siege Activations . | . . . . Martial Activations . | . . . . Shielding Activations . | . . . . Robots Disrupted . | . . . . Combat Hostiles . | . . . . Robots Corrupted . | . . . . Combat Hostiles . | . . . . Parts Fried . | . . . . Impact Corruptions . | . . . . Robots Melted . | . . . . Combat Hostiles . | . . . . Parts Melted 1 | 1 . . . Heat Transferred 1013 | 111 . 333 569 Parts Sabotaged . | . . . . Parts Stolen . | . . . . Parts Stripped . | . . . . Power Chain Reactions . | . . . . Alert | -11 -10 -10 -8 ------- Run | Yrd Mat Sub Rec Maximum Alert Level . | . . . . Low Security (%) 100 | 100 100 . 100 Level 1 . | . . . . Level 2 . | . . . . Level 3 . | . . . . Level 4 . | . . . . Level 5 . | . . . . High Security . | . . . . Max Security . | . . . . Peak Influence 48 | 10 . . 48 Initial . | . . . . Average 3 | . . . 4 Influence Increases 171 | 10 . 75 86 Destroy 0b10 Robot/C 100 | . . 60 40 Destroy 0b10 Robot/NC 35 | 10 . . 25 Successful Hack 15 | . . . 15 Destroy Structure 6 | . . . 6 Lose Combat Pursuer 15 | . . 15 . Influence Decreases 171 | 10 . 75 86 Time Decay 143 | 10 . 75 58 Lost Part 28 | . . . 28 Squads Dispatched 2 | . 2 . . Investigation . | . . . . Extermination . | . . . . Reinforcement 2 | . 2 . . Assault . | . . . . Garrison . | . . . . Intercept . | . . . . Searches Triggered . | . . . . Construction Impeded . | . . . . Haulers Reinforced . | . . . . Active Scanning Responses . | . . . . Cargo Convoy Interrupts . | . . . . Stealth | -11 -10 -10 -8 --------- Run | Yrd Mat Sub Rec Distress Signals . | . . . . Communications Jammed . | . . . . Distress Signals . | . . . . Times Spotted 19 | . 2 12 5 Peak Tracking Total 5 | . 2 3 5 Tactical Retreats 1 | . . 1 . Traps | -11 -10 -10 -8 ------- Run | Yrd Mat Sub Rec Traps Triggered . | . . . . Indirectly . | . . . . Trap Hack Attempts . | . . . . Triggered . | . . . . Disarmed . | . . . . Reprogrammed . | . . . . Reused . | . . . . Traps Extracted . | . . . . Installed . | . . . . Triggered . | . . . . Machines | -11 -10 -10 -8 ---------- Run | Yrd Mat Sub Rec Machines Disabled . | . . . . Max in Single Turn . | . . . . Machines Repaired . | . . . . Machines Dismantled . | . . . . Machines Sabotaged . | . . . . Overloaded Fab Kills . | . . . . Hacking | -11 -10 -10 -8 --------- Run | Yrd Mat Sub Rec Machines Accessed 12 | . 1 1 10 Terminals 7 | . 1 . 6 Fabricators . | . . . . Repair Stations . | . . . . Recycling Units 2 | . . . 2 Scanalyzers . | . . . . Garrison Access . | . . . . Total Hacks 52 | . 2 5 45 Successful 37 | . . 5 32 Failed 15 | . 2 . 13 Catastrophic 4 | . 1 . 3 Database Lockouts . | . . . . Manual 10 | . 2 . 8 Terminals 18 | . 2 . 16 Fabricators . | . . . . Repair Stations . | . . . . Recycling Units 3 | . . . 3 Scanalyzers . | . . . . Garrison Access . | . . . . Terminal Hacks 32 | . . 5 27 Record 29 | . . 5 24 Part Schematic 1 | . . . 1 Release Object 2 | . . . 2 Fabricator Hacks . | . . . . Repair Station Hacks . | . . . . Recycling Unit Hacks 1 | . . . 1 Report Inventory 1 | . . . 1 Scanalyzer . | . . . . Garrison Access Hacks . | . . . . Unauthorized Hacks 4 | . . . 4 Terminals 3 | . . . 3 Track 1 | . . . 1 Botnet 2 | . . . 2 Fabricators . | . . . . Repair Stations . | . . . . Recycling Units 1 | . . . 1 Recyclers 1 | . . . 1 Scanalyzers . | . . . . Garrison Access . | . . . . Data Cores Recovered . | . . . . Used . | . . . . Hacking Detections 9 | . 1 . 8 Full Trace Events 1 | . . . 1 Feedback Events . | . . . . Feedback Blocked . | . . . . Robot Schematics Acquired . | . . . . Robots Built . | . . . . Authchips . | . . . . Time . | . . . . Total Robot Build Rating . | . . . . Part Schematics Acquired 1 | . . . 1 Parts Built . | . . . . Authchips . | . . . . Time . | . . . . Total Part Build Rating . | . . . . Part Studies Acquired . | . . . . Parts Repaired . | . . . . Time . | . . . . Parts Recycled . | . . . . Recycled Matter . | . . . . Retrieved Matter . | . . . . Retrieved Components . | . . . . Parts Scanalyzed . | . . . . Part Schematics Acquired . | . . . . Parts Damaged . | . . . . Bothacking | -11 -10 -10 -8 ------------ Run | Yrd Mat Sub Rec Used RIF Installer . | . . . . Robots Hacked . | . . . . Non-combat . | . . . . Combat . | . . . . Robot Hacks Applied . | . . . . Relay Couplers Released . | . . . . Fabnet Peak Effective % . | . . . . Robots Rewired . | . . . . Allies Hacked . | . . . . Hacks Repelled . | . . . . Allies | -11 -10 -10 -8 -------- Run | Yrd Mat Sub Rec Total Allies . | . . . . Largest Group . | . . . . Highest-Rated Group . | . . . . Highest-Rated Ally . | . . . . Total Orders . | . . . . Ally Attacks . | . . . . Total Damage . | . . . . Kills . | . . . . Allies Corrupted . | . . . . Allies Melted . | . . . . Intel | -11 -10 -10 -8 ------- Run | Yrd Mat Sub Rec Active Infowar (turns) 1003 | 61 185 757 . Terrain 1003 | 61 185 757 . Robot Analysis Total . | . . . . Derelict Logs Recovered . | . . . . Drone Launches . | . . . . Drone Recoveries . | . . . . Exploration | -11 -10 -10 -8 ------------- Run | Yrd Mat Sub Rec Turns Passed 4035 | 121 185 1531 2198 Spaces Moved 1719 | 64 108 666 881 Core 2 | . . . 2 Treads 543 | 64 108 371 . Legs . | . . . . Wheels 1174 | . . 295 879 Hover . | . . . . Flight . | . . . . Fastest Speed 50 | 160 160 80 50 Average Speed 206 | 160 160 188 229 Slowest Speed 230 | 160 160 230 230 Overloaded Moves . | . . . . Propulsion Burnouts . | . . . . Robots Hopped . | . . . . Potential Cave-ins . | . . . . Cave-ins Triggered . | . . . . Exploration Rate (%) 39 | 4 29 30 96 Regions Visited 3 Branch Regions 2 Pre-discovered Areas . | . . . . Known Exits Taken . | . . . . Unknown Exits Taken 3 | 1 1 1 . Scrap Searched 3 | . . 3 . Spaces Dug 14 | . . 9 5 Terrain Destroyed 27 | . . 13 14 Melee . | . . . . Projectile 27 | . . 13 14 AOE . | . . . . Terrain Rammed . | . . . . Walls Destroyed . | . . . . Machines Disabled . | . . . . Actions | -11 -10 -10 -8 --------- Run | Yrd Mat Sub Rec Total 2033 | 76 119 834 1004 Wait 75 | . 3 22 50 Move 1716 | 63 107 665 881 Hop . | . . . . Pick Up 65 | 3 4 44 14 Fast Attach 10 | 1 1 5 3 Attach 3 | . . 1 2 Detach . | . . . . Swap 7 | 3 . 4 . Drop 47 | 3 3 32 9 Fire 105 | 3 1 58 43 Melee . | . . . . Ram 1 | . . . 1 Kick . | . . . . Crush . | . . . . Escape Stasis . | . . . . Rewire 1 | . . . 1 Trap . | . . . . Miscellaneous 3 | . . 3 . Route ------- -11/Scrapyard -10/Materials (discovered 2 exits: [*Min] / *Sub) -10/Subcaves -8/Recycling (discovered 1 exit: [*Fac]) History --------- Turn | Location | Event 4 | -11/Scrapyard | Discovered new exit (range 3) 122 | -11/Scrapyard | Entered Materials 123 | -10/Materials | Met a group of wandering Federalists 245 | -10/Materials | Discovered new exit (range 6) 279 | -10/Materials | Lost 3 allies 295 | -10/Materials | Discovered new exit (range 7) 306 | -10/Materials | Build established: Mutant 307 | -10/Materials | Entered Subcaves 308 | -10/Subcaves | Continued accompanying wandering Federalists (1) 308 | -10/Subcaves | Approached by a straggling Scientist 797 | -10/Subcaves | Visited Clippyterm 802 | -10/Subcaves | Learned Research security intel 802 | -10/Subcaves | Learned 40 Factory zone layouts 1058 | -10/Subcaves | Shifting Twisted Machinery released Humpback 1063 | -10/Subcaves | Shifting Twisted Machinery released Scrap Shield 1360 | -10/Subcaves | Build established: Hauler-Mutant 1479 | -10/Subcaves | Discovered new exit (range 10) 1838 | -10/Subcaves | Entered Recycling 1839 | -8/Recycling | Met a Zionite searching for Scraptown 2321 | -8/Recycling | Discovered new exit (range 10) 3844 | -8/Recycling | Scanned before Scraplab entrance 3897 | -8/Recycling | Discovered new exit (range 3) 3957 | -8/Recycling | Entered Scraplab 4001 | -8/Recycling | Angered Scraplab inhabitants 4003 | -8/Recycling | Found Prototype Device 4012 | -8/Recycling | Identified Scrap Engine 4013 | -8/Recycling | Core integrity fell below 50% 4020 | -8/Recycling | Core integrity fell below 20% 4036 | -8/Recycling | Destroyed by E9-WB2(j) with Overtuned Pulse Rifle Last Messages --------------- 04010_ Hvy. Particle Cannon destroyed. 04011_ Dropped Humpback. 04012_ Identified Scrap Engine. 04014_ Acquired Assault Rifle. [Achievement: There's More Where That Came From] 04015_ Machine disabled. 04015_ Scraplab SEP disabled. 04016_ Critical hit (Burn: +50). 04018_ Battle Rifle destroyed. 04019_ Acquired Hvy. Particle Cannon. 04026_ Assault Rifle destroyed. 04028_ Wheel destroyed. 04032_ Hvy. Particle Cannon destroyed. 04034_ Slammed into E9-WB2(j). [Achievement: For Emergencies Only] 04034_ Ion Engine destroyed. 04035_ Wheel destroyed. 04035_ Critical hit (Burn: +50). 04036_ G2-D5V(j) heat spikes uncontrollably. 04036_ Critical hit (Burn: +50). Map ----- +----------------------------------------------------+ | | | | | | | | | | | | | | | | | | | | | | | | | | | | | | | | | | | | | | | | | | | | | | | ?????????????????????############????????????????? | | ?????????????????????# """"""#< #????????????????? | | ?????????????????????#j !@="=## #????????????????? | | ???????????????#######jcj&]*! #????????????????? | | ??????????????## +!!=!![! #????????????????? | | ??????????????# #####!]=[![ "#????????????????? | | ??????????????## #???#*=!|[! ""#????????????????? | | ???????????????# #???#"&!"& X ""#????????????????? | | ???????????????# #???#"""""""" #????????????????? | | ????????????#####################?#??????????????? | | ????????????# #????????????? ??????????????? | | ????????????# #????????????# #?????????????? | | ????????????# #????????????# #?????????????? | | ###?????????# #????????????# #?????????????? | | ???????####+####????????????# #?????????????? | | ??####### #???????????????# #?????????????? | | ! ! # =#%*=#???????#######?# ##????????????? | | ! !+ !=%%*=#???????#"""""#?# #????????????? | | ! # #%###?????###""T""######????????????? | | ! ??## #####??????# #????????????? | | #####?????# ############ #????????????? | | ??????????# + #????????????? | | ###### #### # """"""" #????????????? | | # """"""" #????????????? | | # """"""" #????????????? | | + """"""" #????????????? | | # """"""" #????????????? | +----------------------------------------------------+ Best States ------------- Heat Dissipation 25 Energy Generation 10 Energy Capacity 250 Matter Stores 300 Matter Capacity 300 Sight Range 16 Terrain Scan Range 16 Terrain Scan Density 10 Armor Coverage 800 Evasion (%) 44 Recoil Reduction 2 Item Schematics ----------------- Transmission Jammer | -8/Recycling | Hacked Robot Schematics ------------------ None Fabricated ------------ Nothing Repaired ---------- Nothing Studied --------- None Alien Tech Used ----------------- None Achievements -------------- DATA ERROR: Steam Global Achievement% For Emergencies Only I Have A Map? Organ Harvest Strength In Numbers Survival Of The Most Covered There's More Where That Came From You May Approach The Wall Challenges ------------ None Game ------ Seed FieldthrustThermicLauncher Manual? 0 Play Time 00:38:11 Cumulative 330.8 hours Start 2026.07.14 @ 21:06:03 End 2026.07.14 @ 21:45:35 Sessions 1 Manual Loads 0 Difficulty Rogue Special Mode None Game No. 139 Rogue 139 Adventurer 0 Explorer 0 Win Type - Total 14 Types 10/0/1/1/0/1/1/0/0/0 Lore% 51 Gallery% 66 Achievement% 43 Wizard Run 0 Options --------- Layout 1 ASCII 1 Keyboard 0 Movement Numpad Keybinds 0 Fullscreen 2 Font 24/Smallcaps Map View 50x35 Zoom Use 0% Tactical HUD 1 Map Filters NONE Filters NONE Steam 1 RUN: 2ffa34ba-fb88-4ad9-9542-99bb9f31a074